bitfinex-derivatives/quotes_BTCF0:USTF0_20251220
["timestamp","ask_amount","ask_price","bid_price","bid_amount"]
[1766255631932,0.0113375,88243.0,88230.0,6e-08]
[1766255632128,0.22856188,88240.0,88230.0,6e-08]
[1766255632733,0.0113375,88243.0,88230.0,6e-08]
[1766255641241,0.02836,88246.0,88230.0,6e-08]
[1766255641433,0.0260985,88245.0,88230.0,6e-08]
[1766255641632,0.0260985,88244.0,88230.0,6e-08]
[1766255641841,0.0260985,88243.0,88230.0,6e-08]
[1766255642042,0.02836,88246.0,88230.0,6e-08]
[1766255642233,0.02609886,88245.0,88230.0,6e-08]
[1766255642441,0.02609886,88244.0,88230.0,6e-08]
[1766255642634,0.02609886,88243.0,88230.0,6e-08]
[1766255642938,0.02836,88246.0,88230.0,6e-08]
[1766255643138,0.02609928,88245.0,88230.0,6e-08]
[1766255643445,0.02609928,88244.0,88230.0,6e-08]
[1766255643641,0.02609928,88243.0,88230.0,6e-08]
[1766255643945,0.02836,88246.0,88230.0,6e-08]
[1766255644137,0.02610036,88245.0,88230.0,6e-08]
[1766255644337,0.02610036,88244.0,88230.0,6e-08]
[1766255644637,0.02610036,88243.0,88230.0,6e-08]
[1766255644946,0.02836,88246.0,88230.0,6e-08]
[1766255645243,0.0113374,88243.0,88230.0,6e-08]
[1766255646549,0.02836,88246.0,88230.0,6e-08]
[1766255646743,0.02610565,88245.0,88230.0,6e-08]
[1766255646942,0.0113371,88245.0,88230.0,6e-08]
[1766255647242,0.02610814,88244.0,88230.0,6e-08]
[1766255647444,0.0113371,88245.0,88230.0,6e-08]
[1766255647744,0.02610815,88244.0,88230.0,6e-08]
[1766255647943,0.0113371,88245.0,88230.0,6e-08]
[1766255648130,0.02610815,88244.0,88230.0,6e-08]
[1766255648332,0.0113371,88245.0,88230.0,6e-08]
[1766255648537,0.02611112,88244.0,88230.0,6e-08]
[1766255648738,0.0113371,88245.0,88230.0,6e-08]
[1766255648941,0.02611112,88244.0,88230.0,6e-08]
[1766255649242,0.0113371,88245.0,88230.0,6e-08]
[1766255649444,0.02611466,88244.0,88230.0,6e-08]
[1766255649636,0.0113371,88245.0,88230.0,6e-08]
[1766255649936,0.02611466,88244.0,88230.0,6e-08]
[1766255650128,0.0113371,88245.0,88230.0,6e-08]
[1766255650334,0.02611893,88244.0,88230.0,6e-08]
[1766255650538,0.0113371,88245.0,88230.0,6e-08]
[1766255650744,0.02611889,88244.0,88230.0,6e-08]
[1766255650929,0.0113371,88245.0,88230.0,6e-08]
[1766255651133,0.02611889,88244.0,88230.0,6e-08]
[1766255651432,0.02611889,88243.0,88230.0,6e-08]
[1766255651628,0.0113371,88245.0,88230.0,6e-08]
[1766255651834,0.02612438,88244.0,88230.0,6e-08]
[1766255652036,0.02612438,88243.0,88230.0,6e-08]
[1766255652237,0.0113371,88245.0,88230.0,6e-08]
[1766255652436,0.02613184,88244.0,88230.0,6e-08]
[1766255652637,0.02613184,88243.0,88230.0,6e-08]
[1766255652845,0.0113371,88245.0,88230.0,6e-08]
[1766255653041,0.02613181,88244.0,88230.0,6e-08]
[1766255653242,0.02613181,88243.0,88230.0,6e-08]
[1766255653442,0.02613181,88242.0,88230.0,6e-08]
[1766255653644,0.02613181,88241.0,88230.0,6e-08]
[1766255653838,0.0113371,88245.0,88230.0,6e-08]
[1766255654045,0.02614959,88244.0,88230.0,6e-08]
[1766255654244,0.02614959,88243.0,88230.0,6e-08]
[1766255654445,0.02614959,88242.0,88230.0,6e-08]
[1766255654646,0.02614959,88241.0,88230.0,6e-08]
[1766255654843,0.02614956,88240.0,88230.0,6e-08]
[1766255655042,0.0113371,88245.0,88230.0,6e-08]
[1766255655334,0.02614956,88244.0,88230.0,6e-08]
[1766255655540,0.02614956,88243.0,88230.0,6e-08]
[1766255655842,0.02614956,88242.0,88230.0,6e-08]
[1766255656042,0.02614956,88241.0,88230.0,6e-08]
[1766255656342,0.02614956,88240.0,88230.0,6e-08]
[1766255656648,0.0113371,88245.0,88230.0,6e-08]
[1766255656850,0.02614952,88244.0,88230.0,6e-08]
[1766255657049,0.02614952,88243.0,88230.0,6e-08]
[1766255657235,0.02614952,88242.0,88230.0,6e-08]
[1766255657439,0.02614952,88241.0,88230.0,6e-08]
[1766255657650,0.02614952,88240.0,88230.0,6e-08]
[1766255657839,0.0113371,88245.0,88230.0,6e-08]
[1766255658039,0.02614945,88244.0,88230.0,6e-08]
[1766255658240,0.02614945,88243.0,88230.0,6e-08]
[1766255658435,0.02614945,88242.0,88230.0,6e-08]
[1766255658646,0.02614945,88241.0,88230.0,6e-08]
[1766255658950,0.0113371,88245.0,88230.0,6e-08]
[1766255658951,0.02614945,88240.0,88230.0,6e-08]
[1766255659149,0.0113371,88245.0,88230.0,6e-08]
[1766255659351,0.02614938,88244.0,88230.0,6e-08]
[1766255659554,0.02614938,88243.0,88230.0,6e-08]
[1766255659744,0.02614938,88242.0,88230.0,6e-08]
[1766255659945,0.02614938,88241.0,88230.0,6e-08]
[1766255660145,0.02614938,88240.0,88230.0,6e-08]
[1766255660353,0.0113371,88245.0,88230.0,6e-08]
[1766255660653,0.02614942,88244.0,88230.0,6e-08]
[1766255660854,0.02614942,88243.0,88230.0,6e-08]
[1766255661055,0.02614942,88242.0,88230.0,6e-08]
[1766255661353,0.02614942,88241.0,88230.0,6e-08]
[1766255661654,0.02614942,88240.0,88230.0,6e-08]
[1766255661848,0.0113371,88245.0,88230.0,6e-08]
[1766255662040,0.02614938,88244.0,88230.0,6e-08]
[1766255662244,0.02614938,88243.0,88230.0,6e-08]
[1766255662553,0.02614938,88242.0,88230.0,6e-08]
[1766255662753,0.02614938,88241.0,88230.0,6e-08]
[1766255662951,0.0113371,88245.0,88230.0,6e-08]
[1766255663151,0.02614923,88244.0,88230.0,6e-08]
[1766255663352,0.02614923,88243.0,88230.0,6e-08]
[1766255663553,0.02614923,88242.0,88230.0,6e-08]
[1766255663854,0.02614923,88241.0,88230.0,6e-08]
[1766255664056,0.0113371,88245.0,88230.0,6e-08]
[1766255664356,0.02614919,88244.0,88230.0,6e-08]
[1766255664557,0.02614919,88243.0,88230.0,6e-08]
[1766255664751,0.02614919,88242.0,88230.0,6e-08]
[1766255664952,0.02614919,88241.0,88230.0,6e-08]
[1766255665148,0.02614919,88240.0,88230.0,6e-08]
[1766255665348,0.02614919,88239.0,88230.0,6e-08]
[1766255665548,0.0113371,88245.0,88230.0,6e-08]
[1766255665755,0.02620664,88244.0,88230.0,6e-08]
[1766255666055,0.02620664,88243.0,88230.0,6e-08]
[1766255666256,0.02620664,88242.0,88230.0,6e-08]
[1766255666442,0.02620664,88241.0,88230.0,6e-08]
[1766255666749,0.02620664,88240.0,88230.0,6e-08]
[1766255666955,0.02620664,88239.0,88230.0,6e-08]
[1766255667155,0.02620672,88238.0,88230.0,6e-08]
[1766255667357,0.0113371,88245.0,88230.0,6e-08]
[1766255667548,0.02620668,88244.0,88230.0,6e-08]
[1766255667858,0.02620668,88243.0,88230.0,6e-08]
[1766255668048,0.02620668,88242.0,88230.0,6e-08]
[1766255668249,0.02620668,88241.0,88230.0,6e-08]
[1766255668550,0.02620668,88240.0,88230.0,6e-08]
[1766255668855,0.02620668,88239.0,88230.0,6e-08]
[1766255669057,0.0113371,88245.0,88230.0,6e-08]
[1766255669260,0.02836,88246.0,88230.0,6e-08]
[1766255669261,0.0113374,88243.0,88230.0,6e-08]
[1766255669558,0.02620675,88242.0,88230.0,6e-08]
[1766255671856,0.02620675,88241.0,88230.0,6e-08]
[1766255672057,0.02620675,88240.0,88230.0,6e-08]
[1766255672359,0.02620675,88239.0,88230.0,6e-08]
[1766255672556,0.02836,88246.0,88230.0,6e-08]
[1766255672755,0.02620679,88245.0,88230.0,6e-08]
[1766255673059,0.02620679,88244.0,88230.0,6e-08]
[1766255673253,0.02620679,88243.0,88230.0,6e-08]
[1766255673451,0.02620679,88242.0,88230.0,6e-08]
[1766255673641,0.02620679,88241.0,88230.0,6e-08]
[1766255673845,0.02620679,88240.0,88230.0,6e-08]
[1766255674042,0.02620679,88239.0,88230.0,0.01133916]
[1766255674246,0.02836,88246.0,88230.0,0.01133916]
[1766255674557,0.02620682,88245.0,88230.0,0.01133916]
[1766255674758,0.02620682,88244.0,88230.0,0.01133916]
[1766255675055,0.02836,88246.0,88230.0,0.01133916]
[1766255675260,0.02620809,88245.0,88230.0,0.01133916]
[1766255675460,0.02836,88246.0,88230.0,0.01133916]
[1766255675759,0.02620402,88245.0,88230.0,0.01133916]
[1766255675951,0.02836,88246.0,88230.0,0.01133916]
[1766255676151,0.026204,88245.0,88230.0,0.01133916]
[1766255676353,0.02836,88246.0,88230.0,0.01133916]
[1766255680865,0.02836,88246.0,88230.0,6e-08]
[1766255681668,0.02836,88246.0,88230.0,0.22857992]
[1766255685870,0.02836,88246.0,88230.0,6e-08]
[1766255690063,0.02618448,88245.0,88230.0,6e-08]
[1766255690371,0.02836,88246.0,88230.0,6e-08]
[1766255692372,0.02618571,88245.0,88230.0,6e-08]
[1766255692673,0.02836,88246.0,88230.0,6e-08]
[1766255692873,0.02618566,88245.0,88230.0,6e-08]
[1766255693072,0.02836,88246.0,88230.0,6e-08]
[1766255695578,0.02617718,88245.0,88230.0,6e-08]
[1766255695778,0.02836,88246.0,88230.0,6e-08]
[1766255695982,0.02617722,88245.0,88230.0,6e-08]
[1766255696180,0.02836,88246.0,88230.0,6e-08]
[1766255697181,0.02617864,88245.0,88230.0,6e-08]
[1766255697384,0.02836,88246.0,88230.0,6e-08]
[1766255697678,0.02617865,88245.0,88230.0,6e-08]
[1766255697878,0.02836,88246.0,88231.0,0.0113389]
[1766255698081,0.02617865,88245.0,88231.0,0.0113389]
[1766255698273,0.02836,88246.0,88231.0,0.0113389]
[1766255698474,0.02617958,88245.0,88231.0,0.0113389]
[1766255698669,0.02836,88246.0,88231.0,0.0113389]
[1766255698975,0.02617957,88245.0,88231.0,0.0113389]
[1766255699180,0.02836,88246.0,88231.0,0.0113389]
[1766255699373,0.02618067,88245.0,88231.0,0.0113389]
[1766255699569,0.02836,88246.0,88231.0,0.0113389]
[1766255699767,0.02618066,88245.0,88231.0,0.0113389]
[1766255699975,0.02836,88246.0,88231.0,0.0113389]
[1766255700277,0.02618068,88245.0,88231.0,0.0113389]
[1766255700478,0.02836,88246.0,88231.0,0.0113389]
[1766255700678,0.02618182,88245.0,88231.0,0.0113389]
[1766255700882,0.02836,88246.0,88231.0,0.0113389]
[1766255701085,0.02618181,88245.0,88231.0,0.0113389]
[1766255701384,0.02836,88246.0,88231.0,0.0113389]
[1766255701583,0.02618357,88245.0,88231.0,0.0113389]
[1766255701884,0.02836,88246.0,88231.0,0.0113389]
[1766255702181,0.02618338,88245.0,88231.0,0.0113389]
[1766255702383,0.02836,88246.0,88231.0,0.0113389]
[1766255702584,0.02618546,88245.0,88231.0,0.0113389]
[1766255702786,0.02836,88246.0,88231.0,0.0113389]
[1766255702985,0.02618546,88245.0,88231.0,0.0113389]
[1766255703185,0.02836,88246.0,88231.0,0.0113389]
[1766255703388,0.02618822,88245.0,88231.0,0.0113389]
[1766255703588,0.02836,88246.0,88231.0,0.0113389]
[1766255703885,0.02618837,88245.0,88231.0,0.0113389]
[1766255704088,0.02836,88246.0,88231.0,0.0113389]
[1766255704387,0.02619348,88245.0,88231.0,0.0113389]
[1766255704578,0.02619348,88244.0,88231.0,0.0113389]
[1766255704779,0.02836,88246.0,88231.0,0.0113389]
[1766255704974,0.0261935,88245.0,88231.0,0.0113389]
[1766255705188,0.0261935,88244.0,88231.0,0.0113389]
[1766255705374,0.02836,88246.0,88231.0,0.0113389]
[1766255705580,0.02619428,88245.0,88231.0,0.0113389]
[1766255705779,0.02619428,88244.0,88231.0,0.0113389]
[1766255705987,0.02836,88246.0,88231.0,0.0113389]
[1766255706188,0.02619428,88245.0,88231.0,0.0113389]
[1766255706488,0.02619428,88244.0,88231.0,0.0113389]
[1766255706688,0.02836,88246.0,88231.0,0.0113389]
[1766255706891,0.02619442,88245.0,88231.0,0.0113389]
[1766255707092,0.02619442,88244.0,88231.0,0.0113389]
[1766255707298,0.02836,88246.0,88231.0,0.0113389]
[1766255707598,0.02619469,88245.0,88231.0,0.0113389]
[1766255707892,0.02619469,88244.0,88231.0,0.0113389]
[1766255708189,0.02836,88246.0,88231.0,0.0113389]
[1766255708491,0.02619476,88245.0,88231.0,0.0113389]
[1766255708694,0.02619476,88244.0,88231.0,0.0113389]
[1766255708989,0.02836,88246.0,88231.0,0.0113389]
[1766255709188,0.02619543,88245.0,88231.0,0.0113389]
[1766255709389,0.02619543,88244.0,88231.0,0.0113389]
[1766255709581,0.02836,88246.0,88231.0,0.0113389]
[1766255709780,0.02619689,88245.0,88231.0,0.0113389]
[1766255709988,0.02619689,88244.0,88231.0,0.0113389]
[1766255710188,0.02836,88246.0,88231.0,0.0113389]
[1766255710399,0.02619763,88245.0,88231.0,0.0113389]
[1766255710598,0.02619763,88244.0,88231.0,0.0113389]
[1766255710897,0.02836,88246.0,88230.0,0.22854314]
[1766255711111,0.02619759,88245.0,88230.0,0.22854314]
[1766255711398,0.02619759,88244.0,88230.0,0.22854314]
[1766255711597,0.02836,88246.0,88230.0,0.22854314]
[1766255711798,0.02619775,88245.0,88230.0,0.22854314]
[1766255712005,0.02619775,88244.0,88230.0,6e-08]
[1766255712191,0.02836,88246.0,88230.0,0.22854314]
[1766255712500,0.02619783,88245.0,88230.0,0.22854314]
[1766255712703,0.02619783,88244.0,88230.0,0.22854314]
[1766255712904,0.02836,88246.0,88230.0,0.22854314]
[1766255713101,0.02619784,88245.0,88230.0,0.22854314]
[1766255713297,0.02619784,88244.0,88230.0,0.22854314]
[1766255713504,0.02836,88246.0,88230.0,0.22854314]
[1766255713696,0.02619791,88245.0,88230.0,0.22854314]
[1766255713898,0.02619791,88244.0,88230.0,0.22854314]
[1766255714097,0.02836,88246.0,88230.0,0.22854314]
[1766255714403,0.0261981,88245.0,88230.0,0.22854314]
[1766255714603,0.0261981,88244.0,88230.0,0.22854314]
[1766255714804,0.02836,88246.0,88230.0,0.22854314]
[1766255715005,0.02619825,88245.0,88230.0,0.22854314]
[1766255715195,0.02619825,88244.0,88230.0,0.22854314]
[1766255715396,0.02836,88246.0,88230.0,0.22854314]
[1766255715596,0.0261983,88245.0,88230.0,0.22854314]
[1766255715801,0.0261983,88244.0,88230.0,0.22854314]
[1766255716102,0.02836,88246.0,88230.0,0.22854314]
[1766255716399,0.0261983,88245.0,88230.0,0.22854314]
[1766255716601,0.0261983,88244.0,88230.0,0.23988204]
[1766255716802,0.02836,88246.0,88230.0,0.23988204]
[1766255717000,0.0261983,88245.0,88231.0,0.02836]
[1766255717207,0.0261983,88244.0,88231.0,0.02836]
[1766255717409,0.02836,88246.0,88231.0,0.02836]
[1766255717604,0.02619832,88245.0,88231.0,0.02836]
[1766255717902,0.02619832,88244.0,88231.0,0.02836]
[1766255718105,0.02836,88246.0,88231.0,0.02836]
[1766255718302,0.02619832,88245.0,88231.0,0.02836]
[1766255718503,0.02619832,88244.0,88231.0,0.02836]
[1766255718705,0.02836,88246.0,88231.0,0.02836]
[1766255718898,0.02619835,88245.0,88231.0,0.02836]
[1766255719098,0.02619835,88244.0,88231.0,0.02836]
[1766255719397,0.02836,88246.0,88231.0,0.02836]
[1766255719598,0.02619837,88245.0,88231.0,0.02836]
[1766255719899,0.02619837,88244.0,88231.0,0.02836]
[1766255720198,0.02836,88246.0,88231.0,0.02836]
[1766255720398,0.02619839,88245.0,88231.0,0.02836]
[1766255720600,0.02619839,88244.0,88231.0,0.02836]
[1766255720799,0.02836,88246.0,88231.0,0.02836]
[1766255720999,0.02619852,88245.0,88231.0,0.02836]
[1766255721198,0.02619852,88244.0,88231.0,0.02836]
[1766255721412,0.02836,88246.0,88231.0,0.02836]
[1766255721609,0.02619859,88245.0,88231.0,0.02836]
[1766255721806,0.02619859,88244.0,88231.0,0.02836]
[1766255722007,0.02836,88246.0,88231.0,0.02836]
[1766255722204,0.02619854,88245.0,88231.0,0.02836]
[1766255722408,0.02619854,88244.0,88231.0,0.02836]
[1766255722607,0.02836,88246.0,88231.0,0.02836]
[1766255722900,0.02619862,88245.0,88231.0,0.02836]
[1766255723102,0.02619862,88244.0,88231.0,0.02836]
[1766255723298,0.02836,88246.0,88231.0,0.02836]
[1766255723498,0.02619867,88245.0,88231.0,0.02836]
[1766255723699,0.02619867,88244.0,88231.0,0.02836]
[1766255723904,0.02836,88246.0,88231.0,0.02836]
[1766255724105,0.02619867,88245.0,88231.0,0.02836]
[1766255724303,0.02836,88246.0,88232.0,0.0113388]
[1766255724618,0.02619877,88245.0,88232.0,0.0113388]
[1766255724814,0.02836,88246.0,88232.0,0.0113388]
[1766255725116,0.02619862,88245.0,88232.0,0.0113388]
[1766255725307,0.02836,88246.0,88232.0,0.0113388]
[1766255725509,0.02836,88246.0,88235.0,0.0113384]
[1766255735621,0.02620351,88245.0,88235.0,0.0113384]
[1766255735822,0.02620351,88244.0,88235.0,0.0113384]
[1766255736024,0.02836,88246.0,88235.0,0.0113384]
[1766255736231,0.02620347,88245.0,88235.0,0.0113384]
[1766255736428,0.02620347,88244.0,88235.0,0.0113384]
[1766255736627,0.02836,88246.0,88235.0,0.0113384]
[1766255736929,0.02620345,88245.0,88235.0,0.0113384]
[1766255737131,0.02620345,88244.0,88235.0,0.0113384]
[1766255737330,0.02836,88246.0,88231.0,0.02836]
[1766255737630,0.02620344,88245.0,88231.0,0.02836]
[1766255737820,0.02620344,88244.0,88231.0,0.02836]
[1766255738020,0.02836,88246.0,88231.0,0.02836]
[1766255738220,0.02620342,88245.0,88232.0,0.0113387]
[1766255738422,0.02620342,88244.0,88232.0,0.0113387]
[1766255738727,0.02836,88246.0,88232.0,0.0113387]
[1766255738928,0.02620347,88245.0,88232.0,0.0113387]
[1766255739131,0.02620347,88244.0,88232.0,0.0113387]
[1766255739332,0.02836,88246.0,88232.0,0.0113387]
[1766255739532,0.02620349,88245.0,88232.0,0.0113387]
[1766255739725,0.02620349,88244.0,88234.0,0.0113384]
[1766255739926,0.02836,88246.0,88234.0,0.0113384]
[1766255740126,0.02620348,88245.0,88234.0,0.0113384]
[1766255740329,0.02620348,88244.0,88234.0,0.0113384]
[1766255740530,0.02836,88246.0,88234.0,0.0113384]
[1766255740829,0.02620349,88245.0,88234.0,0.0113384]
[1766255741030,0.02620349,88244.0,88234.0,0.0113384]
[1766255741225,0.02836,88246.0,88234.0,0.0113384]
[1766255741420,0.0262042,88245.0,88234.0,0.0113384]
[1766255741619,0.0262042,88244.0,88234.0,0.0113384]
[1766255741837,0.02836,88246.0,88234.0,0.0113384]
[1766255742034,0.02620426,88245.0,88234.0,0.0113384]
[1766255742236,0.02620426,88244.0,88234.0,0.0113384]
[1766255742438,0.02836,88246.0,88234.0,0.0113384]
[1766255742734,0.0262043,88245.0,88234.0,0.0113384]
[1766255742934,0.0262043,88244.0,88234.0,0.0113384]
[1766255743136,0.02836,88246.0,88234.0,0.0113384]
[1766255743435,0.02620429,88245.0,88234.0,0.0113384]
[1766255743636,0.02620429,88244.0,88234.0,0.0113384]
[1766255743834,0.02836,88246.0,88234.0,0.0113384]
[1766255744133,0.02620432,88245.0,88234.0,0.0113384]
[1766255744336,0.02620432,88244.0,88234.0,0.0113384]
[1766255744536,0.02836,88246.0,88234.0,0.0113384]
[1766255744830,0.02620435,88245.0,88234.0,0.0113384]
[1766255745036,0.02620435,88244.0,88234.0,0.0113384]
[1766255745230,0.02836,88246.0,88234.0,0.0113384]
[1766255745429,0.02620439,88245.0,88234.0,0.0113384]
[1766255745633,0.02620439,88244.0,88234.0,0.0113384]
[1766255745833,0.02836,88246.0,88234.0,0.0113384]
[1766255746037,0.02620439,88245.0,88234.0,0.0113384]
[1766255746335,0.02620439,88244.0,88234.0,0.0113384]
[1766255746535,0.02836,88246.0,88234.0,0.0113384]
[1766255746735,0.02620441,88245.0,88234.0,0.0113384]
[1766255746944,0.02620441,88244.0,88234.0,0.0113384]
[1766255747237,0.02836,88246.0,88234.0,0.0113384]
[1766255747437,0.02620445,88245.0,88234.0,0.0113384]
[1766255747637,0.02620445,88244.0,88234.0,0.0113384]
[1766255747831,0.02836,88246.0,88234.0,0.0113384]
[1766255748032,0.02620452,88245.0,88234.0,0.0113384]
[1766255748340,0.02620452,88244.0,88234.0,0.0113384]
[1766255748539,0.02836,88246.0,88234.0,0.0113384]
[1766255748743,0.02620446,88245.0,88234.0,0.0113384]
[1766255748947,0.02620446,88244.0,88234.0,0.0113384]
[1766255749255,0.02836,88246.0,88234.0,0.0113384]
[1766255749441,0.02620407,88245.0,88234.0,0.0113384]
[1766255749640,0.02620407,88244.0,88234.0,0.0113384]
[1766255749842,0.02836,88246.0,88234.0,0.0113384]
[1766255750142,0.02620407,88245.0,88234.0,0.0113384]
[1766255750446,0.02620407,88244.0,88234.0,0.0113384]
[1766255750647,0.02836,88246.0,88234.0,0.0113384]
[1766255750845,0.0262041,88245.0,88234.0,0.0113384]
[1766255751045,0.0262041,88244.0,88234.0,0.0113384]
[1766255751244,0.02836,88246.0,88234.0,0.0113384]
[1766255751548,0.02620365,88245.0,88234.0,0.0113384]
[1766255751749,0.02620365,88244.0,88234.0,0.0113384]
[1766255751953,0.02836,88246.0,88234.0,0.0113384]
[1766255752153,0.02620378,88245.0,88234.0,0.0113384]
[1766255752355,0.02620378,88244.0,88234.0,0.0113384]
[1766255752550,0.02836,88246.0,88234.0,0.0113384]
[1766255752856,0.02620385,88245.0,88234.0,0.0113384]
[1766255753158,0.02620385,88244.0,88234.0,0.0113384]
[1766255753354,0.02836,88246.0,88234.0,0.0113384]
[1766255753555,0.02620391,88245.0,88234.0,0.0113384]
[1766255753754,0.02620391,88244.0,88234.0,0.0113384]
[1766255754059,0.02836,88246.0,88234.0,0.0113384]
[1766255754257,0.02620392,88245.0,88234.0,0.0113384]
[1766255754461,0.02620392,88244.0,88234.0,0.0113384]
[1766255754659,0.02836,88246.0,88234.0,0.0113384]
[1766255754857,0.02620407,88245.0,88234.0,0.0113384]
[1766255755057,0.02620407,88244.0,88234.0,0.0113384]
[1766255755359,0.02836,88246.0,88234.0,0.0113384]
[1766255755656,0.02614699,88245.0,88234.0,0.0113384]
[1766255755850,0.02614699,88244.0,88234.0,0.0113384]
[1766255756050,0.02836,88246.0,88234.0,0.0113384]
[1766255756350,0.02614699,88245.0,88234.0,0.0113384]
[1766255756550,0.02614699,88244.0,88234.0,0.0113384]
[1766255756751,0.02836,88246.0,88234.0,0.0113384]
[1766255756953,0.02614698,88245.0,88234.0,0.0113384]
[1766255757251,0.02614698,88244.0,88234.0,0.0113384]
[1766255757460,0.02836,88246.0,88234.0,0.0113384]
[1766255757661,0.0261471,88245.0,88234.0,0.0113384]
[1766255757851,0.0261471,88244.0,88234.0,0.0113384]
[1766255758050,0.02836,88246.0,88234.0,0.0113384]
[1766255758251,0.02614702,88245.0,88234.0,0.0113384]
[1766255758559,0.02614702,88244.0,88234.0,0.0113384]
[1766255758748,0.02836,88246.0,88234.0,0.0113384]
[1766255758951,0.02614716,88245.0,88234.0,0.0113384]
[1766255759147,0.02614716,88244.0,88234.0,0.0113384]
[1766255759359,0.02836,88246.0,88234.0,0.0113384]
[1766255759562,0.02614712,88245.0,88234.0,0.0113384]
[1766255759858,0.02614712,88244.0,88234.0,0.0113384]
[1766255760059,0.02614693,88243.0,88234.0,0.0113384]
[1766255760262,0.02836,88246.0,88234.0,0.0113384]
[1766255760456,0.02614692,88245.0,88234.0,0.0113384]
[1766255760655,0.02614692,88244.0,88234.0,0.0113384]
[1766255760955,0.02836,88246.0,88234.0,0.0113384]
[1766255761156,0.02614695,88245.0,88234.0,0.0113384]
[1766255761347,0.02614695,88244.0,88234.0,0.0113384]
[1766255761551,0.02836,88246.0,88234.0,0.0113384]
[1766255761752,0.02614692,88245.0,88234.0,0.0113384]
[1766255761951,0.02614692,88244.0,88234.0,0.0113384]
[1766255762164,0.02614692,88243.0,88234.0,0.0113384]
[1766255762363,0.02836,88246.0,88234.0,0.0113384]
[1766255762553,0.02614692,88245.0,88234.0,0.0113384]
[1766255762753,0.02614692,88244.0,88234.0,0.0113384]
[1766255762962,0.02614692,88243.0,88234.0,0.0113384]
[1766255763262,0.02836,88246.0,88234.0,0.0113384]
[1766255763562,0.02614692,88245.0,88234.0,0.0113384]
[1766255763764,0.02614692,88244.0,88234.0,0.0113384]
[1766255763962,0.02614692,88243.0,88234.0,0.0113384]
[1766255764163,0.02836,88246.0,88234.0,0.0113384]
[1766255764363,0.02614693,88245.0,88234.0,0.0113384]
[1766255764565,0.02614693,88244.0,88234.0,0.0113384]
[1766255764761,0.02836,88246.0,88234.0,0.0113384]
[1766255765067,0.02614693,88245.0,88234.0,0.0113384]
[1766255765260,0.02614693,88244.0,88234.0,0.0113384]
[1766255765461,0.02836,88246.0,88234.0,0.0113384]
[1766255765760,0.02614693,88245.0,88234.0,0.0113384]
[1766255765959,0.02614693,88244.0,88234.0,0.0113384]
[1766255766161,0.02836,88246.0,88234.0,0.0113384]
[1766255766365,0.02614693,88245.0,88234.0,0.0113384]
[1766255766667,0.02614693,88244.0,88234.0,0.0113384]
[1766255766858,0.02836,88246.0,88234.0,0.0113384]
[1766255767058,0.02614692,88245.0,88234.0,0.0113384]
[1766255767253,0.02614692,88244.0,88234.0,0.0113384]
[1766255767456,0.02836,88246.0,88234.0,0.0113384]
[1766255767657,0.02614691,88245.0,88234.0,0.0113384]
[1766255767853,0.02614691,88244.0,88234.0,0.0113384]
[1766255768061,0.02836,88246.0,88234.0,0.0113384]
[1766255768262,0.0261469,88245.0,88234.0,0.0113384]
[1766255768462,0.0261469,88244.0,88234.0,0.0113384]
[1766255768762,0.02836,88246.0,88234.0,0.0113384]
[1766255769066,0.02614695,88245.0,88234.0,0.0113384]
[1766255769367,0.02614695,88244.0,88234.0,0.0113384]
[1766255769668,0.02836,88246.0,88234.0,0.0113384]
[1766255769867,0.02614696,88245.0,88234.0,0.0113384]
[1766255770057,0.02614696,88244.0,88234.0,0.0113384]
[1766255770257,0.02836,88246.0,88234.0,0.0113384]
[1766255770457,0.02614701,88245.0,88234.0,0.0113384]
[1766255770659,0.02614701,88244.0,88234.0,0.0113384]
[1766255770952,0.02836,88246.0,88234.0,0.0113384]
[1766255771157,0.02614698,88245.0,88234.0,0.0113384]
[1766255771364,0.02614698,88244.0,88234.0,0.0113384]
[1766255771664,0.02836,88246.0,88234.0,0.0113384]
[1766255771968,0.02614705,88245.0,88234.0,0.0113384]
[1766255772168,0.02614705,88244.0,88234.0,0.0113384]
[1766255772359,0.02836,88246.0,88234.0,0.0113384]
[1766255772559,0.02614712,88245.0,88234.0,0.0113384]
[1766255772859,0.02614712,88244.0,88234.0,0.0113384]
[1766255773059,0.02836,88246.0,88234.0,0.0113384]
[1766255773366,0.0261471,88245.0,88234.0,0.0113384]
[1766255773555,0.02836,88246.0,88234.0,0.0113384]
[1766255783369,0.02614985,88245.0,88234.0,0.0113384]
[1766255783579,0.02614982,88244.0,88234.0,0.0113384]
[1766255783776,0.02836,88246.0,88234.0,0.0113384]
[1766255783977,0.02614982,88245.0,88234.0,0.0113384]
[1766255784178,0.02614982,88244.0,88234.0,0.0113384]
[1766255784474,0.02836,88246.0,88234.0,0.0113384]
[1766255784677,0.0261497,88245.0,88234.0,0.0113384]
[1766255784877,0.0261497,88244.0,88234.0,0.0113384]
[1766255785063,0.02836,88246.0,88234.0,0.0113384]
[1766255785262,0.02609293,88245.0,88234.0,0.0113384]
[1766255785462,0.02609293,88244.0,88234.0,0.0113384]
[1766255785666,0.02836,88246.0,88234.0,0.0113384]
[1766255785871,0.02609286,88245.0,88234.0,0.0113384]
[1766255786070,0.02609286,88244.0,88234.0,0.0113384]
[1766255786281,0.02836,88246.0,88234.0,0.0113384]
[1766255786481,0.02609279,88245.0,88234.0,0.0113384]
[1766255786676,0.02609279,88244.0,88231.0,0.02836]
[1766255786981,0.02836,88246.0,88231.0,0.02836]
[1766255787180,0.02609274,88245.0,88231.0,0.02836]
[1766255787381,0.02609274,88244.0,88231.0,0.02836]
[1766255787683,0.02836,88246.0,88231.0,0.02836]
[1766255787980,0.02609276,88245.0,88231.0,0.02836]
[1766255788181,0.02609276,88244.0,88232.0,0.0113388]
[1766255788481,0.02836,88246.0,88232.0,0.0113388]
[1766255788672,0.02609278,88245.0,88232.0,0.0113388]
[1766255788868,0.02609278,88244.0,88232.0,0.0113388]
[1766255789068,0.02836,88246.0,88232.0,0.0113388]
[1766255789274,0.02609278,88245.0,88232.0,0.0113388]
[1766255789475,0.02836,88246.0,88232.0,0.0113388]
[1766255789476,0.02609278,88244.0,88232.0,0.0113388]
[1766255789678,0.02836,88246.0,88232.0,0.0113388]
[1766255789883,0.02609281,88245.0,88232.0,0.0113388]
[1766255790187,0.02609281,88244.0,88232.0,0.0113388]
[1766255790370,0.02836,88246.0,88232.0,0.0113388]
[1766255790573,0.02609285,88245.0,88232.0,0.0113388]
[1766255790774,0.02609285,88244.0,88232.0,0.0113388]
[1766255790975,0.02836,88246.0,88232.0,0.0113388]
[1766255791277,0.02609286,88245.0,88232.0,0.0113388]